[Event "Titled Tuesday Blitz May 03 Late 2022"]
[White "Moral Garcia, Serafin"]
[Black "Khanin, Semen"]
[WhiteFideId "2201925"]
[BlackFideId "4111990"]
[WhiteElo "2477"]
[BlackElo "2739"]
[Result "0-1"]
[Round "02"]
[TimeControl "180+1"]
[Date "2022.05.03"]
[WhiteClock "0:00:06"]
[BlackClock "0:00:26"]

1. e4 {[%clk 0:03:00]}  c5 {[%clk 0:02:59]} 2. Nf3 {[%clk 0:03:00]}  e6 {[%clk 0:02:59]} 3. c3 {[%clk 0:03:00]}  d5 {[%clk 0:02:58]} 4. exd5 {[%clk 0:03:00]}  Qxd5 {[%clk 0:02:58]} 5. d4 {[%clk 0:03:01]}  Nf6 {[%clk 0:02:58]} 6. a3 {[%clk 0:03:01]}  cxd4 {[%clk 0:02:56]} 7. cxd4 {[%clk 0:03:01]}  Nc6 {[%clk 0:02:56]} 8. Nc3 {[%clk 0:03:01]}  Qd6 {[%clk 0:02:56]} 9. Bd3 {[%clk 0:02:59]}  Be7 {[%clk 0:02:57]} 10. O-O {[%clk 0:02:59]}  O-O {[%clk 0:02:57]} 11. Bc2 {[%clk 0:02:56]}  a6 {[%clk 0:02:56]} 12. Qd3 {[%clk 0:02:56]}  b5 {[%clk 0:02:48]} 13. Bg5 {[%clk 0:02:55]}  g6 {[%clk 0:02:42]} 14. Bh6 {[%clk 0:02:55]}  Rd8 {[%clk 0:02:41]} 15. Rad1 {[%clk 0:02:54]}  Bb7 {[%clk 0:02:41]} 16. Rfe1 {[%clk 0:02:51]}  Ng4 {[%clk 0:02:37]} 17. Bc1 {[%clk 0:02:35]}  Rac8 {[%clk 0:02:07]} 18. h3 {[%clk 0:02:34]}  Nf6 {[%clk 0:01:47]} 19. Bg5 {[%clk 0:01:46]}  b4 {[%clk 0:01:46]} 20. Na4 {[%clk 0:01:30]}  bxa3 {[%clk 0:01:43]} 21. bxa3 {[%clk 0:01:30]}  Qd5 {[%clk 0:01:37]} 22. Bb3 {[%clk 0:01:24]}  Qa5 {[%clk 0:01:33]} 23. Qe2 {[%clk 0:01:15]}  Nxd4 {[%clk 0:01:26]} 24. Nxd4 {[%clk 0:00:48]}  Qxg5 {[%clk 0:01:26]} 25. f3 {[%clk 0:00:44]}  Bc5 {[%clk 0:01:04]} 26. Nxc5 {[%clk 0:00:32]}  Qxc5 {[%clk 0:01:05]} 27. Qf2 {[%clk 0:00:32]}  e5 {[%clk 0:01:03]} 28. Ne2 {[%clk 0:00:18]}  Rxd1 {[%clk 0:00:55]} 29. Rxd1 {[%clk 0:00:17]}  Qxa3 {[%clk 0:00:56]} 30. Qb6 {[%clk 0:00:17]}  Qc5+ {[%clk 0:00:50]} 31. Qxc5 {[%clk 0:00:16]}  Rxc5 {[%clk 0:00:51]} 32. Rd6 {[%clk 0:00:15]}  Kg7 {[%clk 0:00:46]} 33. Rb6 {[%clk 0:00:15]}  Bc8 {[%clk 0:00:45]} 34. Kf2 {[%clk 0:00:15]}  a5 {[%clk 0:00:45]} 35. Ke3 {[%clk 0:00:13]}  Bd7 {[%clk 0:00:45]} 36. Rd6 {[%clk 0:00:12]}  a4 {[%clk 0:00:45]} 37. Ba2 {[%clk 0:00:12]}  Rc2 {[%clk 0:00:45]} 38. Bb1 {[%clk 0:00:12]}  Rb2 {[%clk 0:00:44]} 39. Bd3 {[%clk 0:00:12]}  a3 {[%clk 0:00:43]} 40. Ra6 {[%clk 0:00:12]}  a2 {[%clk 0:00:43]} 41. Bc4 {[%clk 0:00:12]}  Be6 {[%clk 0:00:34]} 42. Bxe6 {[%clk 0:00:10]}  fxe6 {[%clk 0:00:35]} 43. g4 {[%clk 0:00:10]}  Nd5+ {[%clk 0:00:35]} 44. Kd3 {[%clk 0:00:10]}  Nb4+ {[%clk 0:00:34]} 45. Kc3 {[%clk 0:00:11]}  Rb1 {[%clk 0:00:27]} 46. Ra7+ {[%clk 0:00:05]}  Kf8 {[%clk 0:00:26]} 47. Ra8+ {[%clk 0:00:05]}  Ke7 {[%clk 0:00:26]} 48. Ra7+ {[%clk 0:00:05]}  Kd6 {[%clk 0:00:26]} 49. Ra6+ {[%clk 0:00:06]}  Nxa6 {[%clk 0:00:26]} 0-1


[Site "https://www.chess.com"]

[Event "Titled Tuesday Blitz May 03 Late 2022"]
[White "Mortazavi, Ali"]
[Black "Castillo Pena, Patricia Evarista"]
[WhiteFideId "401323"]
[BlackFideId "6412106"]
[WhiteElo "2339"]
[BlackElo "1918"]
[Result "1-0"]
[Round "02"]
[TimeControl "180+1"]
[Date "2022.05.03"]
[WhiteClock "0:00:34"]
[BlackClock "0:00:05"]

1. Nf3 {[%clk 0:02:58]}  d5 {[%clk 0:02:59]} 2. g3 {[%clk 0:02:59]}  c6 {[%clk 0:02:57]} 3. Bg2 {[%clk 0:03:00]}  Nf6 {[%clk 0:02:57]} 4. O-O {[%clk 0:03:01]}  e6 {[%clk 0:02:56]} 5. d3 {[%clk 0:03:02]}  Nbd7 {[%clk 0:02:54]} 6. Nbd2 {[%clk 0:03:02]}  Be7 {[%clk 0:02:54]} 7. e4 {[%clk 0:03:03]}  dxe4 {[%clk 0:02:53]} 8. dxe4 {[%clk 0:03:03]}  Qc7 {[%clk 0:02:50]} 9. a4 {[%clk 0:02:57]}  O-O {[%clk 0:02:44]} 10. a5 {[%clk 0:02:57]}  a6 {[%clk 0:02:44]} 11. Qe2 {[%clk 0:02:51]}  Rd8 {[%clk 0:02:34]} 12. e5 {[%clk 0:02:45]}  Nd5 {[%clk 0:02:31]} 13. Nc4 {[%clk 0:02:46]}  h6 {[%clk 0:02:21]} 14. h4 {[%clk 0:02:33]}  b5 {[%clk 0:02:16]} 15. axb6 {[%clk 0:02:33]}  N5xb6 {[%clk 0:02:13]} 16. Na5 {[%clk 0:02:18]}  c5 {[%clk 0:02:04]} 17. Qe4 {[%clk 0:02:18]}  Rb8 {[%clk 0:02:02]} 18. Nc6 {[%clk 0:02:13]}  Bf8 {[%clk 0:01:32]} 19. Nxb8 {[%clk 0:02:08]}  Qxb8 {[%clk 0:01:31]} 20. Bf4 {[%clk 0:02:04]}  Bb7 {[%clk 0:01:30]} 21. Qe2 {[%clk 0:02:03]}  Nd5 {[%clk 0:01:25]} 22. Bd2 {[%clk 0:01:59]}  Qc7 {[%clk 0:01:02]} 23. Ba5 {[%clk 0:01:53]}  N5b6 {[%clk 0:00:59]} 24. Rfd1 {[%clk 0:01:43]}  Rc8 {[%clk 0:00:55]} 25. c4 {[%clk 0:01:40]}  Bc6 {[%clk 0:00:35]} 26. Rd2 {[%clk 0:01:20]}  Qb7 {[%clk 0:00:33]} 27. Rad1 {[%clk 0:01:20]}  g6 {[%clk 0:00:15]} 28. Ne1 {[%clk 0:01:14]}  Bxg2 {[%clk 0:00:14]} 29. Nxg2 {[%clk 0:01:14]}  Bg7 {[%clk 0:00:14]} 30. f4 {[%clk 0:01:09]}  Qc6 {[%clk 0:00:12]} 31. Rd6 {[%clk 0:01:05]}  Qb7 {[%clk 0:00:11]} 32. h5 {[%clk 0:01:02]}  gxh5 {[%clk 0:00:10]} 33. Qxh5 {[%clk 0:00:52]}  Rc6 {[%clk 0:00:09]} 34. Bxb6 {[%clk 0:00:44]}  Nxb6 {[%clk 0:00:07]} 35. Rd8+ {[%clk 0:00:43]}  Kh7 {[%clk 0:00:07]} 36. Qf3 {[%clk 0:00:34]}  Nxc4 {[%clk 0:00:05]} 37. Qe4+ {[%clk 0:00:34]} 1-0


[Site "https://www.chess.com"]

[Event "Titled Tuesday Blitz May 03 Late 2022"]
[White "Moskalenko, Alexander"]
[Black "Milanovic, Marko"]
[WhiteFideId "4155351"]
[BlackFideId "980129"]
[WhiteElo "2434"]
[BlackElo "2159"]
[Result "1-0"]
[Round "02"]
[TimeControl "180+1"]
[Date "2022.05.03"]
[WhiteClock "0:00:18"]
[BlackClock "0:00:26"]

1. c4 {[%clk 0:01:43]}  Nf6 {[%clk 0:02:56]} 2. Nc3 {[%clk 0:01:38]}  c5 {[%clk 0:02:56]} 3. Nf3 {[%clk 0:01:35]}  Nc6 {[%clk 0:02:56]} 4. d4 {[%clk 0:01:35]}  cxd4 {[%clk 0:02:55]} 5. Nxd4 {[%clk 0:01:35]}  g6 {[%clk 0:02:55]} 6. g3 {[%clk 0:01:35]}  Bg7 {[%clk 0:02:55]} 7. Bg2 {[%clk 0:01:36]}  O-O {[%clk 0:02:56]} 8. O-O {[%clk 0:01:35]}  a6 {[%clk 0:02:55]} 9. b3 {[%clk 0:01:35]}  Qc7 {[%clk 0:02:55]} 10. Ba3 {[%clk 0:01:21]}  d6 {[%clk 0:02:47]} 11. Rc1 {[%clk 0:01:19]}  Bd7 {[%clk 0:02:20]} 12. Nd5 {[%clk 0:01:10]}  Qd8 {[%clk 0:02:15]} 13. Bb2 {[%clk 0:01:03]}  Rc8 {[%clk 0:02:12]} 14. Nxc6 {[%clk 0:01:01]}  bxc6 {[%clk 0:02:12]} 15. Nxf6+ {[%clk 0:01:01]}  Bxf6 {[%clk 0:02:02]} 16. Bxf6 {[%clk 0:01:00]}  exf6 {[%clk 0:02:03]} 17. Qxd6 {[%clk 0:01:00]}  Be6 {[%clk 0:02:01]} 18. Rfd1 {[%clk 0:00:55]}  Qb6 {[%clk 0:01:57]} 19. Qd4 {[%clk 0:00:49]}  Qxd4 {[%clk 0:01:49]} 20. Rxd4 {[%clk 0:00:50]}  Rfd8 {[%clk 0:01:43]} 21. Rxd8+ {[%clk 0:00:48]}  Rxd8 {[%clk 0:01:44]} 22. Bxc6 {[%clk 0:00:48]}  Rd2 {[%clk 0:01:44]} 23. a4 {[%clk 0:00:36]}  Rxe2 {[%clk 0:01:42]} 24. b4 {[%clk 0:00:36]}  Rb2 {[%clk 0:01:40]} 25. b5 {[%clk 0:00:36]}  axb5 {[%clk 0:01:40]} 26. axb5 {[%clk 0:00:33]}  Kf8 {[%clk 0:01:25]} 27. c5 {[%clk 0:00:33]}  Ke7 {[%clk 0:01:25]} 28. b6 {[%clk 0:00:34]}  Kd8 {[%clk 0:01:26]} 29. Rd1+ {[%clk 0:00:28]}  Kc8 {[%clk 0:01:26]} 30. Bd5 {[%clk 0:00:28]}  Bg4 {[%clk 0:01:20]} 31. Ra1 {[%clk 0:00:26]}  Bh3 {[%clk 0:01:15]} 32. f4 {[%clk 0:00:23]}  Kd7 {[%clk 0:01:11]} 33. Ra7+ {[%clk 0:00:20]}  Kc8 {[%clk 0:01:12]} 34. c6 {[%clk 0:00:17]}  Rxb6 {[%clk 0:01:12]} 35. Rxf7 {[%clk 0:00:16]}  Rb1+ {[%clk 0:01:08]} 36. Kf2 {[%clk 0:00:15]}  Rb2+ {[%clk 0:01:08]} 37. Ke3 {[%clk 0:00:15]}  Rxh2 {[%clk 0:01:05]} 38. Rxh7 {[%clk 0:00:15]}  g5 {[%clk 0:00:59]} 39. fxg5 {[%clk 0:00:14]}  fxg5 {[%clk 0:01:00]} 40. Rxh3 {[%clk 0:00:14]}  Rxh3 {[%clk 0:00:22]} 41. Be6+ {[%clk 0:00:08]}  Kc7 {[%clk 0:00:23]} 42. Bxh3 {[%clk 0:00:08]}  Kxc6 {[%clk 0:00:23]} 43. Ke4 {[%clk 0:00:09]}  Kd6 {[%clk 0:00:24]} 44. Bg4 {[%clk 0:00:09]}  Ke7 {[%clk 0:00:23]} 45. Kf5 {[%clk 0:00:10]}  Kf7 {[%clk 0:00:23]} 46. Kxg5 {[%clk 0:00:11]}  Kg7 {[%clk 0:00:24]} 47. Bf5 {[%clk 0:00:12]}  Kg8 {[%clk 0:00:25]} 48. g4 {[%clk 0:00:12]}  Kg7 {[%clk 0:00:26]} 49. Be6 {[%clk 0:00:12]}  Kh8 {[%clk 0:00:26]} 50. Bd5 {[%clk 0:00:13]}  Kg7 {[%clk 0:00:27]} 51. Kf5 {[%clk 0:00:13]}  Kh8 {[%clk 0:00:28]} 52. g5 {[%clk 0:00:14]}  Kg7 {[%clk 0:00:29]} 53. g6 {[%clk 0:00:15]}  Kh8 {[%clk 0:00:26]} 54. Bg2 {[%clk 0:00:15]}  Kg7 {[%clk 0:00:27]} 55. Kg5 {[%clk 0:00:16]}  Kh8 {[%clk 0:00:28]} 56. Kf6 {[%clk 0:00:16]}  Kg8 {[%clk 0:00:28]} 57. Bd5+ {[%clk 0:00:17]}  Kh8 {[%clk 0:00:25]} 58. g7+ {[%clk 0:00:18]}  Kh7 {[%clk 0:00:26]} 59. g8=Q+ {[%clk 0:00:18]}  Kh6 {[%clk 0:00:26]} 60. Qg5+ {[%clk 0:00:18]}  Kh7 {[%clk 0:00:26]} 61. Qh5# {[%clk 0:00:18]} 1-0


[Site "https://www.chess.com"]

[Event "Titled Tuesday Blitz May 03 Late 2022"]
[White "Nagy, Gabor"]
[Black "Miszler, Levente"]
[WhiteFideId "737119"]
[BlackFideId "763276"]
[WhiteElo "2534"]
[BlackElo "1966"]
[Result "1-0"]
[Round "02"]
[TimeControl "180+1"]
[Date "2022.05.03"]
[WhiteClock "0:02:16"]
[BlackClock "0:00:57"]

1. e4 {[%clk 0:03:00]}  e6 {[%clk 0:02:57]} 2. d4 {[%clk 0:03:00]}  d5 {[%clk 0:02:57]} 3. Nc3 {[%clk 0:03:01]}  Nf6 {[%clk 0:02:55]} 4. Bg5 {[%clk 0:02:59]}  Be7 {[%clk 0:02:55]} 5. e5 {[%clk 0:02:54]}  Nfd7 {[%clk 0:02:53]} 6. h4 {[%clk 0:02:54]}  f6 {[%clk 0:02:37]} 7. exf6 {[%clk 0:02:53]}  Nxf6 {[%clk 0:02:38]} 8. Nf3 {[%clk 0:02:52]}  O-O {[%clk 0:02:37]} 9. Bd3 {[%clk 0:02:52]}  c5 {[%clk 0:02:37]} 10. dxc5 {[%clk 0:02:50]}  Nc6 {[%clk 0:02:35]} 11. Qe2 {[%clk 0:02:50]}  Bxc5 {[%clk 0:02:29]} 12. O-O-O {[%clk 0:02:49]}  Nb4 {[%clk 0:02:17]} 13. Ne5 {[%clk 0:02:46]}  Nxd3+ {[%clk 0:02:14]} 14. Rxd3 {[%clk 0:02:47]}  Qa5 {[%clk 0:02:05]} 15. Kb1 {[%clk 0:02:43]}  b5 {[%clk 0:02:00]} 16. Bxf6 {[%clk 0:02:39]}  Rxf6 {[%clk 0:01:59]} 17. Rf3 {[%clk 0:02:29]}  b4 {[%clk 0:01:47]} 18. Rxf6 {[%clk 0:02:29]}  gxf6 {[%clk 0:01:48]} 19. Qg4+ {[%clk 0:02:29]}  Kf8 {[%clk 0:01:48]} 20. Qf4 {[%clk 0:02:27]}  Kg7 {[%clk 0:01:35]} 21. Rh3 {[%clk 0:02:24]}  Qd8 {[%clk 0:01:06]} 22. Rg3+ {[%clk 0:02:22]}  Kf8 {[%clk 0:00:59]} 23. Qh6+ {[%clk 0:02:21]}  Ke7 {[%clk 0:00:59]} 24. Rg7+ {[%clk 0:02:16]}  Kd6 {[%clk 0:00:57]} 25. Nf7+ {[%clk 0:02:16]} 1-0


[Site "https://www.chess.com"]

[Event "Titled Tuesday Blitz May 03 Late 2022"]
[White "Pakleza, Zbigniew"]
[Black "Richter, Nils"]
[WhiteFideId "1119290"]
[BlackFideId "12990809"]
[WhiteElo "2467"]
[BlackElo "2243"]
[Result "1-0"]
[Round "02"]
[TimeControl "180+1"]
[Date "2022.05.03"]
[WhiteClock "0:00:32"]
[BlackClock "0:01:03"]

1. d4 {[%clk 0:03:00]}  d5 {[%clk 0:02:59]} 2. Bf4 {[%clk 0:03:00]}  c6 {[%clk 0:02:58]} 3. e3 {[%clk 0:03:01]}  Bf5 {[%clk 0:02:57]} 4. c4 {[%clk 0:02:59]}  e6 {[%clk 0:02:57]} 5. Nc3 {[%clk 0:02:59]}  Nf6 {[%clk 0:02:56]} 6. Qb3 {[%clk 0:02:58]}  Qb6 {[%clk 0:02:54]} 7. c5 {[%clk 0:02:58]}  Qxb3 {[%clk 0:02:52]} 8. axb3 {[%clk 0:02:59]}  Nbd7 {[%clk 0:02:45]} 9. b4 {[%clk 0:02:59]}  Nh5 {[%clk 0:02:41]} 10. Be5 {[%clk 0:02:58]}  f6 {[%clk 0:02:40]} 11. Bc7 {[%clk 0:02:55]}  Rc8 {[%clk 0:02:39]} 12. Bd6 {[%clk 0:02:53]}  a6 {[%clk 0:02:13]} 13. Bxf8 {[%clk 0:02:28]}  Rxf8 {[%clk 0:02:04]} 14. h3 {[%clk 0:02:23]}  Be4 {[%clk 0:01:52]} 15. Nxe4 {[%clk 0:02:22]}  dxe4 {[%clk 0:01:52]} 16. g4 {[%clk 0:02:22]}  g6 {[%clk 0:01:46]} 17. gxh5 {[%clk 0:02:22]}  gxh5 {[%clk 0:01:47]} 18. Ne2 {[%clk 0:02:15]}  f5 {[%clk 0:01:46]} 19. Nf4 {[%clk 0:02:11]}  h4 {[%clk 0:01:45]} 20. Nxe6 {[%clk 0:02:09]}  Rf6 {[%clk 0:01:43]} 21. Nf4 {[%clk 0:02:04]}  Ke7 {[%clk 0:01:42]} 22. Rg1 {[%clk 0:02:02]}  Nf8 {[%clk 0:01:39]} 23. Rg7+ {[%clk 0:01:50]}  Rf7 {[%clk 0:01:39]} 24. Rxf7+ {[%clk 0:01:51]}  Kxf7 {[%clk 0:01:39]} 25. Bc4+ {[%clk 0:01:51]}  Kf6 {[%clk 0:01:39]} 26. d5 {[%clk 0:01:48]}  Ng6 {[%clk 0:01:38]} 27. Nxg6 {[%clk 0:01:37]}  hxg6 {[%clk 0:01:39]} 28. d6 {[%clk 0:01:36]}  g5 {[%clk 0:01:28]} 29. Kd2 {[%clk 0:01:08]}  Rd8 {[%clk 0:01:19]} 30. Rg1 {[%clk 0:01:05]}  Rd7 {[%clk 0:01:16]} 31. Ke2 {[%clk 0:01:01]}  Rg7 {[%clk 0:01:14]} 32. f3 {[%clk 0:00:57]}  exf3+ {[%clk 0:01:14]} 33. Kxf3 {[%clk 0:00:58]}  Ke5 {[%clk 0:01:12]} 34. Rxg5 {[%clk 0:00:36]}  Rxg5 {[%clk 0:01:06]} 35. d7 {[%clk 0:00:34]}  Rg3+ {[%clk 0:01:07]} 36. Kf2 {[%clk 0:00:33]}  Rg8 {[%clk 0:01:03]} 37. Bxg8 {[%clk 0:00:32]} 1-0


[Site "https://www.chess.com"]

[Event "Titled Tuesday Blitz May 03 Late 2022"]
[White "Perez Rodriguez, Jennifer"]
[Black "Simonovic, Miroslav"]
[WhiteFideId "3507831"]
[BlackFideId "919152"]
[WhiteElo "2170"]
[BlackElo "2043"]
[Result "1-0"]
[Round "02"]
[TimeControl "180+1"]
[Date "2022.05.03"]
[WhiteClock "0:00:18"]
[BlackClock "0:00:03"]

1. e4 {[%clk 0:03:00]}  c5 {[%clk 0:02:58]} 2. Nf3 {[%clk 0:02:59]}  Nc6 {[%clk 0:02:59]} 3. c3 {[%clk 0:03:00]}  d5 {[%clk 0:02:58]} 4. exd5 {[%clk 0:03:01]}  Qxd5 {[%clk 0:02:59]} 5. d4 {[%clk 0:03:02]}  Bf5 {[%clk 0:02:59]} 6. Be3 {[%clk 0:03:01]}  cxd4 {[%clk 0:02:59]} 7. cxd4 {[%clk 0:03:02]}  Bxb1 {[%clk 0:02:59]} 8. Rxb1 {[%clk 0:03:00]}  e6 {[%clk 0:03:00]} 9. a3 {[%clk 0:02:57]}  Nf6 {[%clk 0:02:52]} 10. Be2 {[%clk 0:02:55]}  Be7 {[%clk 0:02:52]} 11. h3 {[%clk 0:02:55]}  O-O {[%clk 0:02:51]} 12. O-O {[%clk 0:02:56]}  Rfd8 {[%clk 0:02:51]} 13. Rc1 {[%clk 0:02:56]}  h6 {[%clk 0:02:44]} 14. Qa4 {[%clk 0:02:56]}  a6 {[%clk 0:02:41]} 15. Rfd1 {[%clk 0:02:55]}  b5 {[%clk 0:02:37]} 16. Qc2 {[%clk 0:02:53]}  Rac8 {[%clk 0:02:37]} 17. Qb1 {[%clk 0:02:51]}  Na5 {[%clk 0:02:22]} 18. Ne5 {[%clk 0:02:45]}  Qb3 {[%clk 0:02:11]} 19. Rxc8 {[%clk 0:02:36]}  Rxc8 {[%clk 0:02:12]} 20. Rc1 {[%clk 0:02:35]}  Nc4 {[%clk 0:01:53]} 21. Rc3 {[%clk 0:02:21]}  Qa4 {[%clk 0:01:49]} 22. Qc1 {[%clk 0:01:48]}  Nd5 {[%clk 0:01:42]} 23. b3 {[%clk 0:01:41]}  Qxa3 {[%clk 0:01:40]} 24. Qxa3 {[%clk 0:01:38]}  Bxa3 {[%clk 0:01:39]} 25. Rc2 {[%clk 0:01:24]}  Ndxe3 {[%clk 0:01:37]} 26. fxe3 {[%clk 0:01:23]}  Nd6 {[%clk 0:01:34]} 27. Rxc8+ {[%clk 0:01:20]}  Nxc8 {[%clk 0:01:35]} 28. Nc6 {[%clk 0:01:13]}  Bd6 {[%clk 0:01:34]} 29. Kf2 {[%clk 0:01:12]}  Kf8 {[%clk 0:01:09]} 30. e4 {[%clk 0:01:12]}  f6 {[%clk 0:01:07]} 31. e5 {[%clk 0:01:12]}  fxe5 {[%clk 0:01:07]} 32. dxe5 {[%clk 0:01:13]}  Bc5+ {[%clk 0:01:07]} 33. Kf3 {[%clk 0:01:13]}  Nb6 {[%clk 0:00:49]} 34. Nb8 {[%clk 0:01:09]}  a5 {[%clk 0:00:39]} 35. Bxb5 {[%clk 0:01:07]}  Bb4 {[%clk 0:00:39]} 36. Ke4 {[%clk 0:01:06]}  Nd5 {[%clk 0:00:37]} 37. Bc4 {[%clk 0:01:01]}  Nc7 {[%clk 0:00:28]} 38. Nc6 {[%clk 0:00:53]}  Bc3 {[%clk 0:00:25]} 39. Kd3 {[%clk 0:00:44]}  Be1 {[%clk 0:00:24]} 40. Ke4 {[%clk 0:00:44]}  Kf7 {[%clk 0:00:23]} 41. Kd4 {[%clk 0:00:38]}  g5 {[%clk 0:00:23]} 42. Kc5 {[%clk 0:00:36]}  Kg6 {[%clk 0:00:15]} 43. Kb6 {[%clk 0:00:34]}  Nd5+ {[%clk 0:00:14]} 44. Bxd5 {[%clk 0:00:31]}  exd5 {[%clk 0:00:15]} 45. Kc5 {[%clk 0:00:31]}  Kf5 {[%clk 0:00:12]} 46. Kxd5 {[%clk 0:00:31]}  h5 {[%clk 0:00:10]} 47. e6 {[%clk 0:00:26]}  Kf6 {[%clk 0:00:10]} 48. Kd6 {[%clk 0:00:25]}  g4 {[%clk 0:00:03]} 49. hxg4 {[%clk 0:00:24]}  hxg4 {[%clk 0:00:04]} 50. e7 {[%clk 0:00:20]}  Bg3+ {[%clk 0:00:02]} 51. Kd7 {[%clk 0:00:20]}  Bd6 {[%clk 0:00:02]} 52. e8=Q {[%clk 0:00:20]}  Bf4 {[%clk 0:00:02]} 53. Qe6+ {[%clk 0:00:21]}  Kg5 {[%clk 0:00:02]} 54. Nd4 {[%clk 0:00:18]}  a4 {[%clk 0:00:02]} 55. Qf5+ {[%clk 0:00:19]}  Kh4 {[%clk 0:00:03]} 56. Qxf4 {[%clk 0:00:19]}  axb3 {[%clk 0:00:03]} 57. Nf3+ {[%clk 0:00:18]}  Kh5 {[%clk 0:00:03]} 58. Qg5# {[%clk 0:00:18]} 1-0


[Site "https://www.chess.com"]

[Event "Titled Tuesday Blitz May 03 Late 2022"]
[White "Petrovic, Aleksa"]
[Black "Mangialardo, Tiago Carvalho"]
[WhiteFideId "967629"]
[BlackFideId "2130718"]
[WhiteElo "2198"]
[BlackElo "2117"]
[Result "1-0"]
[Round "02"]
[TimeControl "180+1"]
[Date "2022.05.03"]
[WhiteClock "0:01:58"]
[BlackClock "0:01:00"]

1. d4 {[%clk 0:03:00]}  d5 {[%clk 0:02:59]} 2. c4 {[%clk 0:02:58]}  Nf6 {[%clk 0:03:00]} 3. cxd5 {[%clk 0:02:55]}  Qxd5 {[%clk 0:02:57]} 4. Nc3 {[%clk 0:02:53]}  Qd8 {[%clk 0:02:57]} 5. Nf3 {[%clk 0:02:48]}  Bf5 {[%clk 0:02:55]} 6. Qb3 {[%clk 0:02:43]}  Qc8 {[%clk 0:02:49]} 7. Ne5 {[%clk 0:02:29]}  e6 {[%clk 0:02:45]} 8. f3 {[%clk 0:02:23]}  c5 {[%clk 0:02:23]} 9. e4 {[%clk 0:02:20]}  Bg6 {[%clk 0:02:22]} 10. Bb5+ {[%clk 0:02:07]}  Nbd7 {[%clk 0:02:12]} 11. Bg5 {[%clk 0:02:07]}  cxd4 {[%clk 0:01:39]} 12. Bxf6 {[%clk 0:02:07]}  dxc3 {[%clk 0:01:16]} 13. Bxd7+ {[%clk 0:02:06]}  Qxd7 {[%clk 0:01:11]} 14. Nxd7 {[%clk 0:02:07]}  cxb2 {[%clk 0:01:01]} 15. Bxb2 {[%clk 0:02:00]}  Kxd7 {[%clk 0:01:00]} 16. Qxb7+ {[%clk 0:01:58]} 1-0


[Site "https://www.chess.com"]

[Event "Titled Tuesday Blitz May 03 Late 2022"]
[White "Piesik, Piotr"]
[Black "Bernal Moro, Luis Javier"]
[WhiteFideId "1136194"]
[BlackFideId "2200236"]
[WhiteElo "2190"]
[BlackElo "2373"]
[Result "1-0"]
[Round "02"]
[TimeControl "180+1"]
[Date "2022.05.03"]
[WhiteClock "0:00:55"]
[BlackClock "0:00:04"]

1. Nf3 {[%clk 0:02:58]}  c5 {[%clk 0:02:37]} 2. g3 {[%clk 0:02:56]}  Nc6 {[%clk 0:02:35]} 3. Bg2 {[%clk 0:02:57]}  e5 {[%clk 0:02:32]} 4. O-O {[%clk 0:02:55]}  d5 {[%clk 0:02:30]} 5. d3 {[%clk 0:02:55]}  Be7 {[%clk 0:02:28]} 6. Nbd2 {[%clk 0:02:55]}  Nf6 {[%clk 0:02:28]} 7. e4 {[%clk 0:02:55]}  O-O {[%clk 0:02:28]} 8. c3 {[%clk 0:02:55]}  Re8 {[%clk 0:02:23]} 9. exd5 {[%clk 0:02:54]}  Nxd5 {[%clk 0:02:22]} 10. Re1 {[%clk 0:02:55]}  Bf8 {[%clk 0:02:21]} 11. Nc4 {[%clk 0:02:55]}  f6 {[%clk 0:02:20]} 12. a4 {[%clk 0:02:55]}  Kh8 {[%clk 0:02:15]} 13. a5 {[%clk 0:02:54]}  Rb8 {[%clk 0:02:15]} 14. Qa4 {[%clk 0:02:53]}  Be6 {[%clk 0:02:09]} 15. Nfd2 {[%clk 0:02:50]}  Bf7 {[%clk 0:02:07]} 16. Nf1 {[%clk 0:02:47]}  Qd7 {[%clk 0:01:55]} 17. Nfe3 {[%clk 0:02:45]}  Red8 {[%clk 0:01:51]} 18. Nxd5 {[%clk 0:02:28]}  Bxd5 {[%clk 0:01:50]} 19. Be4 {[%clk 0:02:29]}  f5 {[%clk 0:01:24]} 20. Bxd5 {[%clk 0:02:27]}  Qxd5 {[%clk 0:01:24]} 21. Bg5 {[%clk 0:02:27]}  Re8 {[%clk 0:01:21]} 22. Rad1 {[%clk 0:02:26]}  h6 {[%clk 0:01:15]} 23. Bc1 {[%clk 0:02:24]}  b5 {[%clk 0:01:01]} 24. axb6 {[%clk 0:02:24]}  axb6 {[%clk 0:01:02]} 25. Ne3 {[%clk 0:02:24]}  Qd7 {[%clk 0:00:58]} 26. Nxf5 {[%clk 0:02:22]}  Qxf5 {[%clk 0:00:43]} 27. Qxc6 {[%clk 0:02:22]}  Re6 {[%clk 0:00:42]} 28. Qe4 {[%clk 0:02:20]}  Qf7 {[%clk 0:00:41]} 29. f4 {[%clk 0:02:18]}  Rbe8 {[%clk 0:00:41]} 30. f5 {[%clk 0:02:17]}  Rd6 {[%clk 0:00:41]} 31. Be3 {[%clk 0:02:13]}  Rf6 {[%clk 0:00:37]} 32. g4 {[%clk 0:02:13]}  h5 {[%clk 0:00:33]} 33. h3 {[%clk 0:02:09]}  hxg4 {[%clk 0:00:31]} 34. hxg4 {[%clk 0:02:10]}  g6 {[%clk 0:00:32]} 35. Rf1 {[%clk 0:02:06]}  Kg8 {[%clk 0:00:27]} 36. fxg6 {[%clk 0:02:03]}  Qxg6 {[%clk 0:00:28]} 37. Rxf6 {[%clk 0:02:02]}  Qxf6 {[%clk 0:00:28]} 38. Rf1 {[%clk 0:02:02]}  Qe6 {[%clk 0:00:28]} 39. g5 {[%clk 0:01:49]}  Bg7 {[%clk 0:00:27]} 40. Kg2 {[%clk 0:01:47]}  Rd8 {[%clk 0:00:25]} 41. Rf3 {[%clk 0:01:43]}  Qb3 {[%clk 0:00:24]} 42. Rf2 {[%clk 0:01:42]}  Rd7 {[%clk 0:00:22]} 43. Qf5 {[%clk 0:01:38]}  Rd8 {[%clk 0:00:20]} 44. g6 {[%clk 0:01:37]}  Qd5+ {[%clk 0:00:21]} 45. Kg3 {[%clk 0:01:14]}  Rf8 {[%clk 0:00:19]} 46. Qe4 {[%clk 0:01:13]}  Qe6 {[%clk 0:00:16]} 47. Rxf8+ {[%clk 0:01:12]}  Bxf8 {[%clk 0:00:15]} 48. c4 {[%clk 0:01:07]}  Kg7 {[%clk 0:00:15]} 49. Kf3 {[%clk 0:00:58]}  Qxg6 {[%clk 0:00:15]} 50. Qxg6+ {[%clk 0:00:58]}  Kxg6 {[%clk 0:00:15]} 51. Ke4 {[%clk 0:00:59]}  Kf6 {[%clk 0:00:09]} 52. Kd5 {[%clk 0:00:59]}  Kf5 {[%clk 0:00:08]} 53. Bf2 {[%clk 0:00:56]}  Bh6 {[%clk 0:00:07]} 54. Bh4 {[%clk 0:00:55]}  Bc1 {[%clk 0:00:06]} 55. b3 {[%clk 0:00:55]}  Ba3 {[%clk 0:00:06]} 56. Bd8 {[%clk 0:00:55]}  Bb4 {[%clk 0:00:04]} 57. Bxb6 {[%clk 0:00:55]} 1-0


[Site "https://www.chess.com"]